fUST/lending_fUST_20251101
["ID","MTS","AMOUNT","RATE_DAILY","PERIOD"]
[392769878,1761935438366,-500.0,0.00032797,14]
[392769879,1761935438375,-151.0,0.000328,2]
[392769880,1761935438385,-285.47,0.000328,2]
[392769881,1761935438393,-15719.50997675,0.000328,2]
[392769882,1761935438405,-33711.67219104,0.000328,2]
[392769883,1761935438417,-8739.43779141,0.000328,2]
[392769884,1761935438426,-984.0,0.0003283,2]
[392769885,1761935438436,-637.0,0.0003283,2]
[392769886,1761935438445,-412.0,0.0003283,2]
[392769887,1761935438455,-500.0,0.00032849,4]
[392769888,1761935438465,-233.54155898,0.00032852,14]
[392769889,1761935438477,-266.45844102,0.00032852,14]
[392769890,1761935438491,-600.0,0.00032858,30]
[392769891,1761935438500,-500.0,0.0003287,4]
[392769892,1761935438510,-153.562014,0.00032896,4]
[392769893,1761935438519,-500.0,0.00032907,14]
[392769894,1761935438530,-498.94834872,0.00032962,14]
[392769895,1761935438539,-2569.52272364,0.00032967,2]
[392769896,1761935438549,-500.0,0.00032973,5]
[392769897,1761935438558,-73241.70857474,0.0003299,2]
[392769906,1761935440321,-29817.5,0.0003299,2]
[392769907,1761935440334,-13282.03134326,0.0003299,2]
[392769908,1761935440344,-151.000006,0.0003299,2]
[392769909,1761935440353,-153.562014,0.00032993,2]
[392769911,1761935440363,-855.56498625,0.00033,7]
[392769912,1761935440376,-5521.54968017,0.00033,7]
[392769924,1761935443344,-209.78,0.0003298,10]
[392769925,1761935443354,-99665.64154471,0.00033,7]
[392769926,1761935443363,-1464.52,0.00033,14]
[392769927,1761935443373,-151.0,0.00033,31]
[392769928,1761935443382,-151.0,0.00033,31]
[392769929,1761935443392,-151.0,0.00033,31]
[392769930,1761935443402,-151.0,0.00033,31]
[392769931,1761935443411,-151.0,0.00033,31]
[392769932,1761935443420,-151.0,0.00033,31]
[392769933,1761935443430,-600.735983,0.00033,31]
[392769934,1761935443439,-600.735983,0.00033,31]
[392769935,1761935443448,-600.735983,0.00033,31]
[392769936,1761935443457,-600.735983,0.00033,31]
[392769937,1761935443467,-153.562014,0.00033095,4]
[392769938,1761935443476,-500.0,0.00033144,4]
[392769939,1761935443488,-442.463759,0.00033165,2]
[392769940,1761935443498,-1500.0,0.00033168,5]
[392769941,1761935443507,-285.47,0.000332,2]
[392769942,1761935443516,-153.562014,0.00033389,2]
[392769943,1761935443527,-500.0,0.00033418,4]
[392769944,1761935443537,-587.0,0.00033493,2]
[392769945,1761935443547,-212.79101313,0.00033521,5]
[392769946,1761935443556,-500.0,0.00033692,4]
[392769947,1761935443565,-1500.0,0.00033716,5]
[392769948,1761935443575,-153.562014,0.00033786,2]
[392769949,1761935443583,-151.0,0.00033807,14]
[392769950,1761935443592,-258.0,0.0003389,120]
[392769951,1761935443602,-473.13,0.00033966,4]
[392769952,1761935443611,-17754.49982208,0.00034,14]
[392769985,1761935446344,-1173.29017792,0.00034,14]
[392769986,1761935446353,-225.55096405,0.00034273,3]
[392769987,1761935446364,-1464.52,0.000346,14]
[392769988,1761935446374,-168.54296332,0.00034634,4]
[392769989,1761935446383,-2000.0,0.000348,15]
[392769990,1761935446393,-14601.78484421,0.00035,14]
[392769992,1761935446402,-151.0,0.00035042,14]
[392769994,1761935446411,-179.07929863,0.00035123,30]
[392769996,1761935446420,-2162.0,0.00035197,2]
[392769997,1761935446430,-3732.75,0.000354,30]
[392769998,1761935446439,-212.0,0.00035556,2]
[392769999,1761935446448,-151.0,0.0003556,31]
[392770000,1761935446457,-179.07929863,0.00035589,30]
[392770001,1761935446467,-212.0,0.00035595,7]
[392770002,1761935446475,-212.0,0.00035694,2]
[392770003,1761935446487,-500.0,0.00035815,7]
[392770004,1761935446496,-503.234,0.00035817,7]
[392770005,1761935446505,-984.0,0.0003583,2]
[392770006,1761935446514,-627.0,0.0003583,2]
[392770007,1761935446524,-412.0,0.0003583,2]
[392770008,1761935446533,-213.0,0.00035838,2]
[392770009,1761935446543,-285.0,0.0003589,120]
[392770010,1761935446552,-212.0,0.00035982,2]
[392770011,1761935446561,-212.0,0.00035995,2]
[392770012,1761935446570,-1000.52465296,0.00036,15]
[392770013,1761935446579,-18927.79,0.00036,14]
[392770014,1761935446588,-151.0,0.00036,31]
[392770015,1761935446597,-151.0,0.00036,31]
[392770016,1761935446606,-151.0,0.00036,31]
[392770017,1761935446615,-151.0,0.00036,31]
[392770018,1761935446624,-282.847957,0.00036,31]
[392770019,1761935446633,-600.735983,0.00036,31]
[392770020,1761935446642,-600.735983,0.00036,31]
[392770021,1761935446651,-600.735983,0.00036,31]
[392770022,1761935446661,-600.735983,0.00036,31]
[392770023,1761935446670,-720.0,0.00036144,30]
[392770024,1761935446679,-823.0,0.00036144,2]
[392770025,1761935446688,-212.0,0.00036208,7]
[392770026,1761935446698,-151.0,0.00036277,14]
[392770027,1761935446707,-1464.52,0.000364,14]
[392770028,1761935446716,-246.86880562,0.00036408,4]
[392770029,1761935446725,-212.0,0.00036446,2]
[392770030,1761935446734,-212.0,0.00036596,2]
[392770031,1761935446743,-216.0,0.00036624,2]
[392770032,1761935446753,-212.0,0.00036635,7]
[392770033,1761935446762,-403.89093407,0.00036652,2]
[392770034,1761935446772,-160.0,0.00036652,2]
[392770035,1761935446781,-2000.0,0.00036664,7]
[392770036,1761935446791,-212.0,0.00036765,2]
[392770037,1761935446800,-153.562014,0.00036836,5]
[392770038,1761935446809,-225.55096405,0.00037126,4]
[392770039,1761935446818,-153.562014,0.00037135,50]
[392770040,1761935446827,-153.562014,0.0003714,50]
[392770041,1761935446836,-153.562014,0.00037146,50]
[392770042,1761935446845,-153.562014,0.00037151,50]
[392770043,1761935446854,-197.665424,0.00037151,50]
[392770044,1761935446863,-212.0,0.00037212,7]
[392770045,1761935446873,-1029.53135113,0.000373,120]
[392770046,1761935446882,-212.0,0.00037309,2]
[392770047,1761935446892,-549.609777,0.000374,24]
[392770048,1761935446901,-5720.05502982,0.00037413,2]
[392770049,1761935446910,-500.0,0.00037444,14]
[392770050,1761935446919,-213.0,0.00037454,120]
[392770051,1761935446928,-500.0,0.00037459,7]
[392770052,1761935446936,-153.562014,0.00037459,20]
[392770053,1761935446946,-153.562014,0.00037459,20]
[392770054,1761935446955,-153.562014,0.00037459,20]
[392770055,1761935446964,-245.0,0.0003749,31]
[392770056,1761935446973,-250.0,0.000375,7]
[392770057,1761935446983,-151.0,0.000375,10]
[392770058,1761935446992,-153.88741737,0.00037513,14]
[392770059,1761935447001,-166.40944285,0.00037515,31]
[392770060,1761935447011,-151.0,0.00037515,31]
[392770061,1761935447020,-151.0,0.00037515,31]
[392770062,1761935447029,-151.0,0.00037515,31]
[392770063,1761935447039,-600.735983,0.00037515,31]
[392770064,1761935447047,-600.735983,0.00037515,31]
[392770065,1761935447055,-600.735983,0.00037515,31]
[392770066,1761935447063,-600.735975,0.00037515,31]
[392770067,1761935447072,-13076.07597691,0.00037515,20]
[392770070,1761935710256,150.0,0.00025277,2]
[392770071,1761935783251,150.0,0.00025395,2]
[392770072,1761935840886,5000.0,0.0002551,2]
[392770074,1761935849408,3012.07836355,0.0002551,2]
[392770075,1761935855679,150.0,0.00025336,2]
[392770076,1761935928668,150.0,0.00025118,2]
[392770094,1761936001188,157.18,0.000255,2]
[392770095,1761936011834,500.0,0.000253,2]
[392770096,1761936014394,280.75163645,0.0002551,2]
[392770097,1761936014418,2190.11922644,0.0002551,2]
[392770098,1761936036716,1296.5740968,0.0002551,2]
[392770099,1761936052811,-150.0,0.00025547,2]
[392770100,1761936052841,-150.0,0.00025911,2]
[392770101,1761936059010,1232.55504031,0.00026,2]
[392770125,1761936208633,169.10314,0.00013708,2]
[392770128,1761936245977,150.0,0.00025652,2]
[392770141,1761936348498,150.0,0.00025894,2]
[392770142,1761936387333,172.31422357,0.000253,2]
[392770153,1761936491880,150.0,0.00025482,2]
[392770154,1761936562702,150.0,0.00025652,2]
[392770155,1761936568344,2035752.94914736,0.00037532,60]
[392770157,1761936602798,157.16,0.000252,2]
[392770255,1761936632435,-205.86720572,0.00027114,2]
[392770257,1761936632445,-169.10314,0.00027415,2]
[392770259,1761936632454,-380.0,0.00027438,2]
[392770261,1761936632463,-177.0,0.00027652,2]
[392770263,1761936632472,-150.0,0.00028649,2]
[392770265,1761936632482,-500.0,0.0002876,4]
[392770267,1761936632490,-160.0,0.00029613,2]
[392770269,1761936632499,-204.0,0.00029652,2]
[392770271,1761936632508,-1200.0,0.00029797,2]
[392770272,1761936632517,-300.0,0.00029798,2]
[392770273,1761936632525,-300.0,0.00029798,2]
[392770274,1761936632534,-300.0,0.00029798,2]
[392770275,1761936632543,-300.0,0.00029798,2]
[392770276,1761936632553,-300.0,0.00029798,2]
[392770277,1761936632562,-500.0,0.00029869,4]
[392770278,1761936632571,-500.0,0.00029869,4]
[392770279,1761936632580,-500.0,0.00029869,4]
[392770280,1761936632589,-42974.0,0.0002987,7]
[392770281,1761936632598,-500.0,0.000299,5]
[392770282,1761936632607,-500.0,0.000299,5]
[392770283,1761936632616,-500.0,0.000299,5]
[392770284,1761936632625,-225.88912143,0.00029934,2]
[392770285,1761936632634,-260.0,0.00030161,2]
[392770286,1761936632643,-1000.0,0.00030448,5]
[392770287,1761936632652,-360.0,0.00030709,2]
[392770288,1761936632661,-500.0,0.00030917,5]
[392770289,1761936632670,-165.87217584,0.00030917,5]
[392770290,1761936632678,-150.0,0.00031037,2]
[392770291,1761936632687,-280.0,0.00031257,2]
[392770292,1761936632697,-280.88310693,0.00031347,5]
[392770293,1761936632707,-500.0,0.00031347,5]
[392770294,1761936632715,-500.0,0.00031347,5]
[392770295,1761936632725,-500.0,0.00031347,5]
[392770296,1761936632734,-500.0,0.00031347,5]
[392770297,1761936632743,-500.0,0.00031347,5]
[392770298,1761936632752,-292.14057621,0.00031347,5]
[392770299,1761936632761,-376.10451013,0.00031347,5]
[392770300,1761936632771,-500.0,0.00031347,5]
[392770302,1761936632780,-300.0,0.00031347,5]
[392770304,1761936632792,-231.0,0.00031652,2]
[392770318,1761936632915,-500.0,0.00031895,5]
[392770320,1761936632927,-965.08568432,0.00031895,5]
[392770322,1761936632936,-1000.0,0.00031895,5]
[392770324,1761936632950,-1000.0,0.00031895,5]
[392770326,1761936632962,-516.34145285,0.00032023,2]
[392770328,1761936632972,-247.0,0.00032122,3]
[392770330,1761936632982,-420.0,0.00032122,2]
[392770332,1761936632991,-319.0,0.00032122,3]
[392770334,1761936633001,-300.0,0.00032122,3]
[392770336,1761936633010,-1500.0,0.00032443,5]
[392770338,1761936633020,-1004.57801962,0.00032443,5]
[392770340,1761936633030,-289.95,0.00032444,5]
[392770342,1761936633039,-6006.11748025,0.00032671,2]
[392770344,1761936633048,-151.90645003,0.00032962,14]
[392770346,1761936633058,-151.0,0.00032962,14]
[392770348,1761936633067,-203.4246092,0.00032962,14]
[392770350,1761936633077,-151.0,0.00032962,14]
[392770352,1761936633087,-2000.0,0.00032991,5]
[392770354,1761936633096,-151.0,0.00033017,14]
[392770356,1761936633106,-151.0,0.00033017,14]
[392770358,1761936633115,-198.0,0.00033072,14]
[392770360,1761936633125,-174.82,0.00033147,10]
[392770362,1761936633135,-1000.0,0.00033157,2]
[392770364,1761936633144,-1000.0,0.00033157,2]
[392770366,1761936633154,-1000.0,0.00033157,2]
[392770368,1761936633163,-1000.0,0.00033157,2]
[392770370,1761936633173,-1000.0,0.00033157,2]
[392770372,1761936633182,-1000.0,0.00033157,2]
[392770374,1761936633190,-1000.0,0.00033157,2]
[392770376,1761936633200,-1000.0,0.00033157,2]
[392770378,1761936633209,-1000.0,0.00033157,2]
[392770380,1761936633220,-151.0,0.00033157,2]
[392770382,1761936633229,-1000.0,0.00033157,2]
[392770384,1761936633239,-151.0,0.00033157,2]
[392770386,1761936633248,-1000.0,0.00033157,2]
[392770388,1761936633258,-151.0,0.00033157,2]
[392770390,1761936633267,-1000.0,0.00033157,2]
[392770392,1761936633277,-151.0,0.00033157,2]
[392770394,1761936633288,-1000.0,0.00033157,2]
[392770396,1761936633298,-151.0,0.00033157,2]
[392770398,1761936633307,-1000.0,0.00033157,2]
[392770400,1761936633315,-151.0,0.00033157,2]
[392770402,1761936633324,-1000.0,0.00033157,2]
[392770404,1761936633333,-151.0,0.00033157,2]
[392770406,1761936633343,-1000.0,0.00033157,2]
[392770408,1761936633352,-151.0,0.00033157,2]
[392770410,1761936633361,-1000.0,0.00033157,2]
[392770412,1761936633370,-151.0,0.00033157,2]
[392770414,1761936633379,-1000.0,0.00033157,2]
[392770416,1761936633389,-151.0,0.00033157,2]
[392770418,1761936633398,-1000.0,0.00033157,2]
[392770420,1761936633408,-151.0,0.00033157,2]
[392770422,1761936633417,-1000.0,0.00033157,2]
[392770424,1761936633426,-151.0,0.00033157,2]
[392770426,1761936633435,-151.0,0.00033157,2]
[392770428,1761936633444,-151.0,0.00033157,2]
[392770430,1761936633453,-151.0,0.00033157,2]
[392770432,1761936633462,-151.0,0.00033157,2]
[392770434,1761936633471,-151.0,0.00033157,2]
[392770436,1761936633480,-151.0,0.00033157,2]
[392770438,1761936633489,-151.0,0.00033157,2]
[392770440,1761936633498,-151.0,0.00033157,2]
[392770442,1761936633507,-43651.4127124,0.00033166,2]
[392770444,1761936633515,-849.48,0.00033167,3]
[392770445,1761936633524,-2162.0,0.00033216,2]
[392770448,1761936633534,-412.0,0.00033216,2]
[392770450,1761936633544,-500.0,0.00033275,4]
[392770452,1761936633554,-516.34145281,0.00033341,2]
[392770454,1761936633563,-150.0,0.00033424,2]
[392770456,1761936633572,-2500.0,0.00033538,5]
[392770457,1761936633581,-258.0,0.00033652,120]
[392770460,1761936633591,-479.57586115,0.00034086,5]
[392770461,1761936633601,-587.0,0.00034628,2]
[392770463,1761936633610,-168.54296332,0.00034634,4]
[392770466,1761936633620,-516.34145281,0.0003466,2]
[392770467,1761936633629,-6006.11748025,0.00035543,2]
[392770470,1761936633638,-285.0,0.00035652,120]
[392770471,1761936633647,-150.0,0.00035812,2]
[392770473,1761936633657,-500.0,0.00035871,7]
[392770475,1761936633666,-516.34145281,0.00035978,2]
[392770477,1761936633675,-2313.069284,0.00036,120]
[392770480,1761936633685,-151.0,0.00036216,2]
[392770481,1761936633694,-151.0,0.00036216,2]
[392770484,1761936633704,-2162.0,0.00036216,2]
[392770485,1761936633713,-412.0,0.00036216,2]
[392770487,1761936633722,-168.0,0.00036365,2]
[392770489,1761936633732,-168.0,0.00036531,7]
[392770491,1761936633741,-160.0,0.0003654,2]
[392770493,1761936633750,-403.89093407,0.00036541,2]
[392770495,1761936633760,-168.0,0.00036554,2]
[392770497,1761936633769,-168.0,0.00036617,2]
[392770499,1761936633779,-500.0,0.00036778,4]
[392770501,1761936633788,-152.317752,0.00036926,2]
[392770503,1761936633798,-168.0,0.00037114,7]
[392770506,1761936633809,-2987.4676045,0.0003716,2]
[392770507,1761936633822,-5670.3648626,0.0003716,2]
[392770509,1761936633831,-152.317752,0.00037179,50]
[392770510,1761936633841,-152.317752,0.00037195,50]
[392770512,1761936633851,-186.038003,0.00037195,50]
[392770513,1761936633860,-43651.4127124,0.0003729,3]
[392770514,1761936633870,-516.34145281,0.00037296,2]
[392770516,1761936633879,-206.94514486,0.00037296,2]
[392770518,1761936633890,-1853.15643204,0.000373,120]
[392770520,1761936633900,-168.0,0.00037308,120]
[392770522,1761936633909,-823.0,0.00037329,2]
[392770523,1761936633918,-303.05757821,0.00037344,40]
[392770525,1761936633928,-500.0,0.00037373,5]
[392770527,1761936633937,-117831.07558486,0.00037396,3]
[392770529,1761936633950,-6275.85277904,0.00037396,3]
[392770560,1761936638177,-150.0,0.00026618,2]
[392770561,1761936638187,-150.0,0.00029038,2]
[392770562,1761936638197,-220.06714615,0.00029869,2]
[392770563,1761936638206,-500.0,0.00029869,2]
[392770564,1761936638215,-178.61496737,0.00029869,2]
[392770565,1761936638283,-321.38503263,0.00029869,2]
[392770566,1761936638293,-500.33997138,0.00029869,2]
[392770567,1761936638303,-500.0,0.00029869,2]
[392770568,1761936638312,-500.0,0.00029869,2]
[392770569,1761936638321,-500.0,0.00029869,2]
[392770570,1761936638330,-499.99999999,0.00029869,2]
[392770571,1761936638340,-156.75534788,0.00029869,2]
[392770572,1761936638350,-500.0,0.00029869,2]
[392770573,1761936638359,-500.0,0.00029869,2]
[392770574,1761936638369,-500.0,0.00029869,2]
[392770575,1761936638378,-500.0,0.00029869,2]
[392770576,1761936638387,-500.0,0.00029869,2]
[392770577,1761936638396,-500.0,0.00029869,2]
[392770578,1761936638406,-500.0,0.00029869,2]
[392770579,1761936638415,-500.0,0.00029869,2]
[392770580,1761936638424,-407.07758898,0.00029869,2]
[392770581,1761936638433,-500.0,0.00029869,2]
[392770582,1761936638442,-150.0,0.00031458,2]
[392770583,1761936638451,-150.0,0.00033878,2]
[392770584,1761936638460,-150.0,0.00036298,2]
[392770585,1761936638469,-3607.13921305,0.00037396,3]
[392770664,1761936640498,-445.08,0.00037396,10]
[392770666,1761936640507,-4355.61241024,0.00037396,3]
[392770668,1761936640518,-3355.18073061,0.00037396,3]
[392770835,1761936643563,-1729.02996313,0.00037396,3]
[392770880,1761936646586,-7699.99999982,0.00037396,3]
[392770882,1761936855677,150.0,0.00025217,2]
[392770883,1761936859904,150.0,0.000142,30]
[392770884,1761936860315,150.0,0.00015491,30]
[392770885,1761936860704,150.0,0.00016782,30]
[392770886,1761936861303,197.39,0.00018073,30]
[392770887,1761936861712,246.74,0.00019364,30]
[392770888,1761936862111,296.09,0.00020655,30]
[392770889,1761936862505,345.44,0.00021946,30]
[392770890,1761936862940,394.78,0.00023237,30]
[392770891,1761936863298,444.13,0.00024528,30]
[392770892,1761936863693,304.70995517,0.00025819,30]
[392770893,1761936878259,150.0,0.00025836,2]
[392770894,1761936903150,4689.59764095,0.0002,2]
[392770895,1761936903171,1704.95308762,0.0002,2]
[392770897,1761936989982,347.71574072,0.000253,2]
[392770898,1761937006976,150.0,0.00024931,2]
[392770899,1761937068810,2470.88086289,0.00026,2]
[392770900,1761937076887,5000.0,0.00026,2]
[392770901,1761937080266,150.0,0.0002482,2]
[392770903,1761937156480,150.0,0.00025167,2]
[392770904,1761937196844,150.0,0.00025836,2]
[392770905,1761937201375,157.18,0.000252,2]
[392770906,1761937203074,1921.94913711,0.0002,2]
[392770907,1761937203098,4472.60159146,0.0002,2]
[392770908,1761937204177,371.06878575,0.00025205,2]
[392770909,1761937209090,535.060129,0.00013699,2]
[392770910,1761937209669,535.060129,0.00020187,2]
[392770914,1761937233017,150.0,0.00025003,2]
[392770915,1761937237070,150.0,0.00015063,30]
[392770916,1761937237476,150.0,0.00016433,30]
[392770917,1761937237916,150.0,0.00017802,30]
[392770918,1761937238324,150.0,0.00019171,30]
[392770919,1761937238722,181.85,0.00020541,30]
[392770920,1761937239134,218.22,0.0002191,30]
[392770921,1761937239532,254.59,0.00023279,30]
[392770922,1761937239943,290.96,0.00024649,30]
[392770923,1761937250046,-327.33,0.00026018,30]
[392770926,1761937281251,-7144.599999,0.0002611,10]
[392770927,1761937281275,-1200.0,0.00026466,2]
[392770928,1761937281300,-300.0,0.00026466,2]
[392770929,1761937281324,-200.0,0.00026467,2]
[392770930,1761937281347,-4872.61595346,0.00026467,2]
[392770931,1761937281370,-157.18,0.000265,2]
[392770932,1761937281395,-535.060129,0.00026676,2]
[392770933,1761937281423,-169.73,0.00027276,2]
[392770934,1761937281448,-177.0,0.00027836,2]
[392770935,1761937281472,-228.73724681,0.00027947,2]
[392770936,1761937281498,-500.0,0.00027947,2]
[392770937,1761937281526,-550.78639878,0.00027947,2]
[392770938,1761937281658,-300.0,0.00027947,2]
[392770939,1761937281681,-893.5982528,0.00027948,2]
[392770940,1761937281704,-32770.69202015,0.00027948,2]
[392770941,1761937283644,-16714.06426104,0.00027948,2]
[392770942,1761937283670,-420.0,0.00028629,2]
[392770943,1761937283695,-5000.0,0.00028634,2]
[392770944,1761937283721,-1680.0,0.00028756,2]
[392770945,1761937283749,-254.59,0.00029549,2]
[392770946,1761937283774,-164.50075436,0.0002983,2]
[392770947,1761937283800,-204.0,0.00029836,2]
[392770948,1761937283825,-199.0,0.00029868,7]
[392770949,1761937283851,-500.0,0.00029868,4]
[392770950,1761937283876,-500.0,0.00029869,4]
[392770951,1761937283901,-278.43090321,0.00029869,4]
[392770952,1761937283926,-164.50075436,0.00030249,20]
[392770953,1761937283952,-314.41566493,0.00030385,2]
[392770954,1761937283979,-2558.55437831,0.00030567,2]
[392770955,1761937284003,-500.0,0.00030577,5]
[392770956,1761937284028,-500.0,0.00030577,5]
[392770957,1761937284052,-500.0,0.00030577,5]
[392770958,1761937284079,-471.2770702,0.00030577,5]
[392770959,1761937284107,-500.0,0.00030577,5]
[392770960,1761937284133,-500.0,0.00030577,5]
[392770961,1761937284163,-151.0,0.00030582,2]
[392770962,1761937284191,-151.0,0.00030582,2]
[392770963,1761937284219,-151.0,0.00030582,2]
[392770964,1761937284247,-151.0,0.00030582,2]
[392770965,1761937284274,-151.0,0.00030582,2]
[392770966,1761937284301,-151.0,0.00030582,2]
[392770967,1761937284329,-151.0,0.00030582,2]
[392770968,1761937284359,-151.0,0.00030582,2]
[392770969,1761937284386,-151.0,0.00030582,2]
[392770970,1761937284413,-151.0,0.00030582,2]
[392770971,1761937284439,-151.0,0.00030582,2]
[392770972,1761937284466,-151.0,0.00030582,2]
[392770973,1761937284492,-151.0,0.00030582,2]
[392770974,1761937284518,-151.0,0.00030582,2]
[392770975,1761937284543,-151.0,0.00030582,2]
[392770976,1761937284569,-151.0,0.00030582,2]
[392770977,1761937284595,-151.0,0.00030582,2]
[392770978,1761937284621,-151.0,0.00030582,2]
[392770979,1761937284647,-151.0,0.00030582,2]
[392770980,1761937284672,-151.0,0.00030582,2]
[392770981,1761937284696,-500.0,0.00030599,4]
[392770982,1761937284719,-500.0,0.00030599,4]
[392770983,1761937284744,-500.0,0.00030599,4]
[392770984,1761937284769,-468.27034866,0.00030599,4]
[392770985,1761937284792,-1000.0,0.000306,2]
[392770986,1761937284814,-1000.0,0.000306,2]
[392770987,1761937284844,-1000.0,0.000306,2]
[392770988,1761937284869,-1000.0,0.000306,2]
[392770989,1761937284894,-1000.0,0.000306,2]
[392770990,1761937284918,-1000.0,0.000306,2]
[392770991,1761937284943,-1000.0,0.000306,2]
[392770992,1761937284967,-1000.0,0.000306,2]
[392770993,1761937284989,-1000.0,0.000306,2]
[392770994,1761937285012,-1000.0,0.000306,2]
[392770995,1761937285035,-390.48280618,0.000306,2]
[392770996,1761937285060,-160.0,0.00030662,2]
[392770997,1761937285084,-164.50075436,0.00030667,38]
[392770998,1761937285109,-508.86,0.00030791,10]
[392770999,1761937285133,-1864.55230439,0.00030801,2]
[392771000,1761937285165,-3135.44769561,0.00030801,2]
[392771001,1761937285189,-587.0,0.00030968,2]
[392771002,1761937285210,-164.50075436,0.00031086,56]
[392771003,1761937285233,-1000.0,0.00031125,5]
[392771004,1761937285257,-1000.0,0.00031125,5]
[392771005,1761937285280,-1000.0,0.00031125,5]
[392771006,1761937285304,-1000.0,0.00031125,5]
[392771007,1761937285327,-1000.0,0.00031125,5]
[392771008,1761937285351,-165.48774204,0.0003116,2]
[392771009,1761937285374,-619.82603819,0.00031194,5]
[392771010,1761937285397,-500.0027838,0.00031194,5]
[392771011,1761937285420,-260.0,0.0003121,2]
[392771012,1761937285443,-424.05,0.00031491,10]
[392771013,1761937285467,-39143.684986,0.00031501,2]
[392771014,1761937285788,-30322.8598461,0.00031501,2]
[392771015,1761937285812,-164.50075436,0.00031505,74]
[392771016,1761937285835,-1500.0,0.00031673,5]
[392771017,1761937285857,-1500.0,0.00031673,5]
[392771018,1761937285959,-1500.0,0.00031673,5]
[392771019,1761937285985,-1500.0,0.00031673,5]
[392771020,1761937286008,-360.0,0.00031758,2]
[392771021,1761937286035,-339.45,0.00031822,2]
[392771022,1761937286058,-231.0,0.00031836,2]
[392771023,1761937286085,-164.50075436,0.00031923,92]
[392771024,1761937286109,-1618.13174728,0.00032221,5]
[392771025,1761937286131,-2000.0,0.00032221,5]
[392771026,1761937286156,-2558.55437829,0.00032249,2]
[392771027,1761937286179,-460.0,0.00032306,2]
[392771028,1761937286203,-164.50075436,0.00032342,110]
[392771029,1761937286226,-180.04140952,0.00032551,9]
[392771030,1761937286249,-560.0,0.00032854,2]
[392771031,1761937286273,-999.0,0.00032876,120]
[392771032,1761937286296,-3877.46035573,0.00032967,2]
[392771034,1761937307747,833.5056999,0.00026,2]
[392771040,1761937433717,1107.57,0.00026,2]
[392771043,1761937463094,150.0,0.00024703,2]
[392771047,1761937503086,6394.55072857,0.0002,2]
[392771052,1761937514244,150.0,0.00025658,2]
[392771055,1761937536291,150.0,0.00024719,2]
[392771072,1761937609450,150.0,0.00024716,2]
[392771077,1761937682869,150.0,0.00024753,2]
[392771360,1761937758678,150.0,0.00024793,2]
[392771366,1761937831707,150.0,0.00025329,2]
[392771380,1761937832343,150.0,0.00025658,2]
[392771392,1761937832493,-3636.72266149,0.0002611,2]
[392771395,1761937832504,-150.0,0.00027632,2]
[392771397,1761937832518,-285.95,0.00029867,7]
[392771399,1761937832527,-150.0,0.00029934,2]
[392771401,1761937832537,-236.19,0.00030832,27]
[392771403,1761937832547,-400.0,0.00031476,2]
[392771405,1761937832556,-1547.540263,0.00031477,2]
[392771406,1761937832566,-161.9229726,0.00031549,30]